bitfinex-derivatives/quotes_SOLF0:USTF0_20250309
["timestamp","ask_amount","ask_price","bid_price","bid_amount"]
[1741528010027,0.05381777,134.0,133.98,0.05329165]
[1741528011426,7.4645,133.99,133.98,0.05329165]
[1741528011938,36.8445,133.99,133.98,0.05329165]
[1741528012836,36.8445,133.99,133.98,9.165e-05]
[1741528017836,7.51791777,134.0,133.98,9.165e-05]
[1741528018840,36.83791777,134.0,133.98,9.165e-05]
[1741528019341,7.4645,133.99,133.98,9.165e-05]
[1741528020136,36.79781777,134.0,133.98,9.165e-05]
[1741528020336,29.33381777,134.0,133.98,9.165e-05]
[1741528020843,0.05381777,134.0,133.98,9.165e-05]
[1741528021735,7.4645,133.99,133.98,9.165e-05]
[1741528022337,36.7245,133.99,133.98,9.165e-05]
[1741528025448,7.51801777,134.0,133.98,9.165e-05]
[1741528025740,0.05381777,134.0,133.98,9.165e-05]
[1741528025948,0.05381777,134.0,133.99,7.4645]
[1741528026439,0.05381777,134.0,133.98,9.165e-05]
[1741528026640,4.1533,134.07,133.98,9.165e-05]
[1741528026841,29.24,134.06,133.99,223.96]
[1741528027545,29.24,134.06,133.88,62.0]
[1741528027546,33.67608599,134.02,133.93,223.96]
[1741528027750,33.67608599,133.98,133.87,223.96]
[1741528027941,33.3123,134.01,133.87,223.96]
[1741528027942,31.4488,133.97,133.96,8.762e-05]
[1741528028142,31.4488,133.97,133.87,223.96]
[1741528028444,33.67608599,133.9,133.89,11.97181457]
[1741528028647,33.67608599,133.9,133.88,81.8702422]
[1741528028648,7.4701,133.89,133.88,54.46635677]
[1741528028846,7.4701,133.89,133.88,15.73585677]
[1741528029046,11.2101,133.89,133.88,15.73585677]
[1741528029247,7.4707,133.88,133.87,122.2229519]
[1741528029648,7.4707,133.88,133.87,110.2952519]
[1741528030347,30.15430532,133.9,133.87,110.2952519]
[1741528031048,0.05430532,133.9,133.87,110.2952519]
[1741528031948,37.5,133.93,133.87,110.2952519]
[1741528032146,37.5,133.93,133.87,0.05124802]
[1741528033357,0.05689562,133.91,133.87,0.05124802]
[1741528033546,0.05689562,133.91,133.87,7.52244802]
[1741528033748,38.44,133.96,133.87,0.05124802]
[1741528034047,38.44,133.96,133.85,38.44]
[1741528034242,38.44,133.96,133.87,7.4712]
[1741528034447,38.44,133.96,133.87,54.87104511]
[1741528034842,38.44,133.96,133.85,38.44]
[1741528035043,38.44,133.96,133.9,0.04750249]
[1741528035446,45.9067,133.96,133.9,0.04750249]
[1741528035858,38.44,133.96,133.9,0.04750249]
[1741528036052,54.87104511,133.98,133.9,0.04750249]
[1741528036653,38.62,133.99,133.9,0.04750249]
[1741528037044,54.87104511,133.98,133.86,93.43104511]
[1741528037255,54.87104511,133.98,133.93,0.05180665]
[1741528037949,54.87104511,133.98,133.93,6.65e-06]
[1741528038156,54.87104511,133.95,133.93,6.65e-06]
[1741528038455,46.2673,133.94,133.93,6.65e-06]
[1741528038666,38.8,133.94,133.93,6.65e-06]
[1741528039547,0.05503595,133.95,133.93,6.65e-06]
[1741528039755,38.76,133.99,133.93,6.65e-06]
[1741528039949,38.76,133.99,133.94,7.4673]
[1741528040149,93.61104511,134.04,133.93,6.65e-06]
[1741528040549,93.61104511,134.04,133.92,97.58784511]
[1741528040954,93.61104511,134.04,133.97,0.05134806]
[1741528041153,131.93917719,134.08,133.97,191.68494793]
[1741528041354,30.98527597,134.07,134.04,54.87104511]
[1741528041650,30.98527597,134.07,134.05,46.2012]
[1741528042058,30.98527597,134.07,134.05,38.74]
[1741528042254,30.98527597,134.07,134.04,224.07258331]
[1741528042558,93.55104511,134.14,134.04,224.07258331]
[1741528042559,38.64,134.1,134.04,224.07258331]
[1741528043152,38.66,134.13,134.04,224.07258331]
[1741528043362,38.66,134.13,134.06,7.4602]
[1741528043554,38.66,134.13,134.04,224.02]
[1741528043760,38.66,134.13,134.08,0.04746665]
[1741528043960,7.4573,134.12,134.08,0.04746665]
[1741528044150,38.66,134.13,134.08,0.04746665]
[1741528045262,111.40833585,134.14,134.08,0.04746665]
[1741528045759,3.9121,134.18,134.08,0.04746665]
[1741528045760,40.5929,134.19,134.08,0.04746665]
[1741528045963,40.5929,134.19,134.07,93.49104511]
[1741528046259,40.5929,134.19,134.12,0.04909729]
[1741528046460,54.87104511,134.17,134.12,0.04909729]
[1741528046961,40.5929,134.19,134.12,0.04909729]
[1741528047159,54.87104511,134.18,134.12,0.04909729]
[1741528047960,7.4552,134.16,134.12,0.04909729]
[1741528048153,54.87104511,134.18,134.12,0.04909729]
[1741528048559,7.4555,134.16,134.12,0.04909729]
[1741528048962,54.87104511,134.18,134.12,0.04909729]
[1741528049162,7.4557,134.15,134.12,0.04909729]
[1741528049565,54.87104511,134.18,134.12,0.04909729]
[1741528049766,7.4566,134.14,134.12,0.04909729]
[1741528049964,38.56,134.14,134.12,0.04909729]
[1741528050270,7.4567,134.13,134.12,0.04909729]
[1741528050661,3.72,134.13,134.05,5.9947]
[1741528050875,54.87104511,134.1,134.04,224.02]
[1741528051078,38.48,134.09,134.04,224.02]
[1741528051275,62.32954511,134.1,134.04,224.02]
[1741528051577,38.44,134.12,134.04,224.02]
[1741528051781,0.04848166,134.08,134.06,0.05017264]
[1741528052475,38.44,134.12,134.06,0.05017264]
[1741528052678,93.25104511,134.16,134.06,0.05017264]
[1741528053072,93.25104511,134.16,134.05,7.4611]
[1741528053271,38.38,134.16,134.05,54.87104511]
[1741528053468,7.456,134.15,134.08,7.4593]
[1741528053672,38.38,134.16,134.09,0.05651619]
[1741528054177,7.4584,134.1,134.09,0.05651619]
[1741528054375,38.38,134.16,134.09,0.05651619]
[1741528055079,54.87104511,134.14,134.09,0.05651619]
[1741528055279,7.4584,134.1,134.09,0.05651619]
[1741528055581,54.87104511,134.11,134.04,224.02]
[1741528056380,7.4601,134.07,134.04,224.02]
[1741528056573,54.87104511,134.11,134.04,224.02]
[1741528056875,0.04742112,134.07,134.04,224.07696452]
[1741528057280,0.04742112,134.07,134.04,0.05696452]
[1741528058078,7.4612,134.05,134.04,0.05696452]
[1741528058880,0.04742112,134.07,134.04,0.05696452]
[1741528059072,0.04742112,134.07,134.04,7.51836452]
[1741528059281,0.04742112,134.07,134.04,0.05696452]
[1741528060480,38.08,134.11,134.04,0.05696452]
[1741528061083,7.4599,134.08,134.04,7.51856452]
[1741528061386,38.08,134.11,134.04,7.51856452]
[1741528062486,7.4602,134.07,134.04,0.05696452]
[1741528063282,7.4597,134.08,134.04,7.51836452]
[1741528063491,1.9357,134.15,134.05,37.88]
[1741528063492,37.88,134.14,134.05,37.88]
[1741528063683,54.87104511,134.15,134.06,223.8]
[1741528063884,54.87104511,134.15,134.08,0.05431119]
[1741528065186,7.4568,134.13,134.08,0.05431119]
[1741528065486,54.87104511,134.15,134.08,0.05431119]
[1741528066089,39.7955,134.17,134.12,7.4573]
[1741528066090,7.4547,134.17,134.12,7.4573]
[1741528066392,7.4547,134.17,134.13,0.05437214]
[1741528066592,7.4558,134.15,134.13,0.05437214]
[1741528066786,54.87104511,134.18,134.13,0.05437214]
[1741528067489,7.4548,134.17,134.13,0.05437214]
[1741528067886,58.89654511,134.21,134.13,0.05437214]
[1741528068086,7.4529,134.2,134.15,7.4554]
[1741528068287,37.7,134.23,134.14,223.76]
[1741528068490,37.7,134.23,134.16,0.0474336]
[1741528068690,7.4526,134.21,134.16,7.5021336]
[1741528068992,37.7,134.23,134.16,0.0474336]
[1741528069187,30.38409159,134.3,134.16,0.0474336]
[1741528069395,98.56614511,134.27,134.15,54.87104511]
[1741528069587,54.87104511,134.24,134.22,0.05412397]
[1741528069782,7.4524,134.21,134.16,7.455]
[1741528069992,92.57104511,134.24,134.22,0.05114013]
[1741528070196,92.57104511,134.24,134.14,223.76]
[1741528070488,7.4512,134.23,134.14,223.76]
[1741528070689,7.4512,134.23,134.18,0.05263053]
[1741528070893,54.87104511,134.24,134.18,0.05263053]
[1741528071385,7.4519,134.22,134.18,0.05263053]
[1741528071792,54.87104511,134.24,134.18,0.05263053]
[1741528072293,37.68,134.25,134.18,0.05263053]
[1741528072494,7.4508,134.24,134.18,3.98173053]
[1741528072789,54.87104511,134.28,134.19,2.0052]
[1741528073091,43.4593,134.3,134.2,0.05002442]
[1741528073280,43.4593,134.3,134.19,2.0052]
[1741528073482,7.4491,134.27,134.24,0.0486465]
[1741528073891,37.5,134.29,134.24,0.0486465]
[1741528074389,54.87104511,134.28,134.24,0.0486465]
[1741528074788,7.4501,134.25,134.24,0.0486465]
[1741528074987,54.87104511,134.25,134.18,3.9291]
[1741528075187,92.23104511,134.25,134.18,3.9291]
[1741528075892,37.36,134.25,134.18,3.9291]
[1741528076093,0.05207095,134.23,134.2,0.04808947]
[1741528076696,7.50347095,134.23,134.2,0.04808947]
[1741528077090,0.05207095,134.23,134.22,7.4517]
[1741528077297,0.05207095,134.23,134.2,0.04808947]
[1741528078791,0.05207095,134.23,134.22,7.4517]
[1741528079094,0.05207095,134.23,134.22,231.0717]
[1741528079691,7.4492,134.27,134.23,7.4507]
[1741528079885,7.4492,134.27,134.22,223.62]
[1741528080085,54.87104511,134.28,134.22,223.62]
[1741528080597,7.4497,134.26,134.22,223.62]
[1741528080790,7.4497,134.26,134.23,0.05439103]
[1741528081192,7.4501,134.25,134.23,0.05439103]
[1741528081794,54.87104511,134.28,134.23,0.05439103]
[1741528082395,33.57505859,134.29,134.23,0.05439103]
[1741528082994,7.4495,134.27,134.23,0.05439103]
[1741528083195,33.57505859,134.29,134.23,0.05439103]
[1741528083592,7.4501,134.26,134.23,0.05439103]
[1741528083999,33.57505859,134.29,134.23,0.05439103]
[1741528084202,7.4501,134.25,134.23,0.05439103]
[1741528084404,33.57505859,134.26,134.23,0.05439103]
[1741528084600,70.41505859,134.26,134.23,0.05439103]
[1741528084900,7.4506,134.24,134.23,0.05439103]
[1741528085499,7.4506,134.24,134.12,33.57505859]
[1741528085701,33.57505859,134.22,134.15,223.56]
[1741528086000,70.37505859,134.22,134.15,223.56]
[1741528086202,33.57505859,134.19,134.13,1.9523]
[1741528086399,33.57505859,134.19,134.12,223.56]
[1741528086596,33.57505859,134.19,134.14,0.05079609]
[1741528086794,0.05489659,134.17,134.14,0.05079609]
[1741528087001,0.05489659,134.17,134.15,7.4556]
[1741528087396,36.8,134.22,134.14,36.77079609]
[1741528087708,40.6182,134.25,134.15,1.916]
[1741528087904,7.4521,134.22,134.15,1.916]
[1741528088104,33.57505859,134.23,134.16,7.4549]
[1741528088398,7.4534,134.2,134.15,1.916]
[1741528088701,33.57505859,134.23,134.18,0.05370076]
[1741528089504,7.4535,134.19,134.18,0.05370076]
[1741528090303,33.57505859,134.26,134.18,0.05370076]
[1741528090703,36.56,134.28,134.18,36.61370076]
[1741528090902,36.56,134.28,134.19,1.9395]
[1741528091199,36.56,134.28,134.22,0.04939174]
[1741528091505,7.4497,134.26,134.22,0.04939174]
[1741528091700,36.56,134.28,134.22,0.04939174]
[1741528092111,7.451,134.24,134.22,0.04939174]
[1741528092798,36.56,134.28,134.22,0.04939174]
[1741528093201,33.57505859,134.23,134.22,9.174e-05]
[1741528093402,70.07505859,134.23,134.15,1.916]
[1741528093596,70.07505859,134.23,134.14,223.56]
[1741528093795,4.0415,134.22,134.14,223.56]
[1741528093994,7.4532,134.2,134.14,223.56]
[1741528094401,4.0415,134.22,134.16,0.05140359]
[1741528094602,0.05432548,134.18,134.16,0.05140359]
[1741528094803,36.44,134.23,134.16,0.05140359]
[1741528095008,43.8914,134.23,134.18,7.4539]
[1741528095501,7.4526,134.21,134.17,7.4543]
[1741528095708,36.44,134.23,134.15,36.44]
[1741528096003,36.44,134.23,134.18,0.05193134]
[1741528096207,7.4527,134.21,134.18,0.05193134]
[1741528096400,36.44,134.23,134.18,0.05193134]
[1741528097207,7.4529,134.2,134.18,0.05193134]
[1741528097403,36.44,134.23,134.18,0.05193134]
[1741528097806,7.4534,134.19,134.18,0.05193134]
[1741528098508,7.4526,134.21,134.18,0.05193134]
[1741528099619,7.452,134.22,134.18,7.50583134]
[1741528100804,7.4524,134.21,134.18,7.50583134]
[1741528101004,7.4524,134.21,134.18,0.05193134]
[1741528101204,36.44,134.23,134.18,0.05193134]
[1741528101205,7.4534,134.19,134.18,0.05193134]
[1741528101910,69.57505859,134.19,134.14,223.56]
[1741528102211,36.0,134.19,134.14,223.56]
[1741528102610,36.0,134.19,134.15,7.4553]
[1741528102805,36.0,134.19,134.14,223.56]
[1741528103110,0.05147293,134.18,134.15,0.05407411]
[1741528103505,7.455,134.17,134.15,0.05407411]
[1741528103910,0.05147293,134.18,134.15,0.05407411]
[1741528104101,41.03015859,134.16,134.08,223.6]
[1741528104301,35.96,134.15,134.08,223.6]
[1741528104708,7.4579,134.11,134.08,223.6]
[1741528104905,33.57505859,134.13,134.08,223.6]
[1741528105212,7.459,134.09,134.08,223.6]
[1741528105513,35.92,134.1,134.09,0.05251371]
[1741528106015,0.05522678,134.12,134.09,0.05251371]
[1741528106704,0.05522678,134.12,134.09,2.06611371]
[1741528107312,0.05522678,134.12,134.09,0.05251371]
[1741528109108,7.51292678,134.12,134.09,0.05251371]
[1741528109308,0.05522678,134.12,134.09,0.05251371]
[1741528110106,7.4583,134.11,134.09,0.05251371]
[1741528110307,35.71522678,134.12,134.09,0.05251371]
[1741528110511,7.4584,134.1,134.09,0.05251371]
[1741528112517,3.72,134.1,133.96,191.63359987]
[1741528112717,33.57505859,134.05,133.96,6.1775]
[1741528113023,41.03635859,134.05,133.96,6.1775]
[1741528113515,0.05026945,134.02,133.99,7.51195706]
[1741528113715,0.05026945,134.02,133.99,0.04785706]
[1741528114312,7.51336945,134.02,133.99,0.04785706]
[1741528114712,0.05026945,134.02,133.99,0.04785706]
[1741528115719,39.2623,134.09,133.99,0.04785706]
[1741528116217,7.4599,134.08,134.0,33.57505859]
[1741528116415,35.44,134.09,134.0,33.57505859]
[1741528116618,7.4597,134.08,134.04,7.4617]
[1741528116820,0.04833937,134.06,134.03,223.80903965]
[1741528117714,7.4618,134.04,134.03,223.80903965]
[1741528118427,0.04833937,134.06,134.03,223.80903965]
[1741528120317,7.4616,134.05,134.03,223.80903965]
[1741528120519,0.04833937,134.06,134.03,223.80903965]
[1741528120711,7.4618,134.04,134.03,0.04903965]
[1741528120921,39.66909796,134.06,133.98,191.63359987]
[1741528121118,39.62075859,134.06,133.96,229.9775]
[1741528121316,7.4645,134.0,133.96,229.9775]
[1741528121820,39.62075859,134.06,133.96,229.9775]
[1741528122014,7.51893329,133.99,133.97,0.05127034]
[1741528122209,68.77505859,134.03,133.96,229.9775]
[1741528122413,0.05472726,133.99,133.97,0.05496004]
[1741528122613,7.4651,133.98,133.97,0.05496004]
[1741528123121,35.25472726,133.99,133.9,225.8841]
[1741528123318,33.57505859,133.97,133.9,223.82]
[1741528123514,33.57505859,133.97,133.9,231.2892]
[1741528123723,33.57505859,133.97,133.9,223.82]
[1741528124209,0.05672294,133.95,133.92,0.05136257]
[1741528125621,35.12,134.02,133.92,0.05136257]
[1741528125814,42.5829,134.02,133.96,7.4662]
[1741528126216,35.12,134.02,133.91,35.08]
[1741528126916,0.05719972,133.98,133.95,0.0480594]
[1741528129116,0.05719972,133.98,133.96,7.4658]
[1741528129322,0.05719972,133.98,133.95,0.0480594]
[1741528130228,0.05719972,133.98,133.9,449.02865846]
[1741528130229,67.2073169,133.98,133.9,223.82]
[1741528130423,33.57505859,133.95,133.9,223.82]
[1741528130720,33.57505859,133.98,133.9,223.82]
[1741528131229,33.57505859,134.01,133.91,38.06]
[1741528131417,7.4643,134.0,133.91,38.06]
[1741528131622,0.05492161,133.95,133.93,0.0502391]
[1741528132023,7.4657,133.97,133.93,0.0502391]
[1741528132515,0.05444264,133.96,133.93,0.0502391]
[1741528132712,33.57505859,133.98,133.9,223.82]
[1741528132917,0.05101357,133.96,133.93,0.04756237]
[1741528133424,7.4677,133.94,133.93,0.04756237]
[1741528133617,0.05101357,133.96,133.93,0.04756237]
[1741528135819,0.05101357,133.96,133.93,37.86756237]
[1741528136122,0.05101357,133.96,133.94,2.0314]
[1741528137027,37.92,134.01,133.94,2.0314]
[1741528137625,7.466,133.97,133.94,2.0314]
[1741528137823,37.92,134.01,133.9,223.82]
[1741528138125,7.4672,133.95,133.94,0.0508814]
[1741528139719,7.4663,133.96,133.94,0.0508814]
[1741528140323,7.4668,133.95,133.94,0.0508814]
[1741528140726,0.05174363,133.97,133.94,0.0508814]
[1741528140927,0.05174363,133.97,133.96,7.4662]
[1741528141327,0.05174363,133.97,133.95,2.0229]
[1741528142228,43.4608,134.04,133.95,2.0229]
[1741528142429,33.57505859,134.05,133.95,2.0229]
[1741528142631,7.4625,134.03,133.99,7.4645]
[1741528143332,0.05076582,134.02,134.0,0.05172656]
[1741528143926,0.05076582,134.02,134.0,7.51572656]
[1741528144129,0.05076582,134.02,134.0,0.05172656]
[1741528145030,0.05076582,134.02,134.01,7.4634]
[1741528145431,7.4615,134.05,134.0,0.05172656]
[1741528145631,7.4615,134.05,134.0,37.17172656]
[1741528145833,7.4615,134.05,134.01,7.4632]
[1741528146033,7.4608,134.06,134.0,37.17172656]
[1741528146231,33.57505859,134.08,134.03,7.4619]
[1741528146745,7.4616,134.05,134.04,0.04740714]
[1741528147038,0.05648451,134.07,134.04,0.04740714]
[1741528147232,7.4607,134.06,134.04,0.04740714]
[1741528147835,7.4612,134.05,134.04,0.04740714]
[1741528148439,104.17011718,134.05,133.97,223.96]
[1741528148644,33.57505859,134.02,133.97,223.96]
[1741528149146,2.0568,134.04,133.97,223.96]
[1741528149552,0.05706926,134.02,133.99,0.05181995]
[1741528149843,33.57505859,134.01,133.99,0.05181995]
[1741528150248,7.464,134.0,133.99,0.05181995]
[1741528151342,70.39505859,134.01,133.92,3.8544]
[1741528151743,7.466,133.97,133.92,3.8544]
[1741528151943,33.57505859,133.98,133.92,3.8544]
[1741528152446,0.05275337,133.96,133.94,0.05315242]
[1741528153152,70.39505859,134.01,133.94,36.73315242]
[1741528153745,33.57505859,134.01,133.94,36.73315242]
[1741528153951,41.03895859,134.01,133.95,7.4667]
[1741528154343,0.05276741,133.99,133.95,7.4667]
[1741528154548,7.51746741,133.99,133.94,7.52045242]
[1741528154946,0.05276741,133.99,133.94,0.05315242]
[1741528155149,0.05276741,133.99,133.94,7.52005242]
[1741528156353,7.4655,133.98,133.94,7.52005242]
[1741528156955,0.05276741,133.99,133.94,7.52005242]
[1741528157249,0.05276741,133.99,133.95,7.4667]
[1741528157455,0.05276741,133.99,133.94,0.05315242]
[1741528157752,7.4654,133.98,133.94,0.05315242]
[1741528157957,0.05276741,133.99,133.94,0.05315242]
[1741528158452,7.4661,133.97,133.94,0.05315242]
[1741528158653,0.05276741,133.99,133.94,0.05315242]
[1741528159055,7.4655,133.98,133.94,7.52005242]
[1741528160854,7.4655,133.98,133.95,7.4668]
[1741528161053,7.4655,133.98,133.94,0.05315242]
[1741528161550,7.51756741,133.99,133.94,0.05315242]
[1741528161954,0.05276741,133.99,133.94,0.05315242]
[1741528162159,7.4651,133.98,133.95,7.4664]
[1741528163560,7.4657,133.97,133.95,7.4664]
[1741528163759,0.05276741,133.99,133.95,7.4664]
[1741528164156,7.4654,133.98,133.95,7.4664]
[1741528164756,0.05276741,133.99,133.95,7.4664]
[1741528165557,7.4657,133.97,133.94,7.52025242]
[1741528165860,0.05276741,133.99,133.94,0.05315242]
[1741528166360,33.57505859,133.98,133.94,0.05315242]
[1741528166766,7.4668,133.95,133.94,0.05315242]
[1741528171372,7.51394896,133.96,133.94,0.05315242]
[1741528172967,7.4668,133.95,133.94,0.05315242]
[1741528181474,28.5468807,133.95,133.94,0.05315242]
[1741528187376,55.5800807,133.95,133.84,224.02]
[1741528187581,21.0800807,133.91,133.84,224.02]
[1741528187777,21.0800807,133.89,133.84,224.02]
[1741528187974,55.6400807,133.91,133.84,224.02]
[1741528188179,34.56,133.91,133.84,224.02]
[1741528188475,21.0800807,133.87,133.86,0.04932214]
[1741528188684,21.0800807,133.87,133.8,40.80236208]
[1741528188878,7.4722,133.86,133.81,7.4742]
[1741528189181,21.0800807,133.85,133.8,40.80236208]
[1741528189482,21.0800807,133.85,133.79,3.944]
[1741528189676,21.0800807,133.85,133.79,11.4196]
[1741528189876,0.04991328,133.83,133.81,0.04730876]
[1741528191181,1.30044843,133.95,133.82,78.5900807]
[1741528191374,56.8687351,133.97,133.9,7.469]
[1741528191375,48.00515455,133.97,133.9,7.469]
[1741528191578,69.08523525,133.97,133.9,7.469]
[1741528192280,0.04951855,133.95,133.92,0.05090809]
[1741528192476,40.53935455,133.94,133.92,0.05090809]
[1741528195277,7.4679,133.93,133.92,0.05090809]
[1741528196478,34.92,133.94,133.88,224.08]
[1741528197085,7.4684,133.93,133.88,224.08]
[1741528197580,0.05492343,133.92,133.89,0.05108813]
[1741528198187,0.05492343,133.92,133.89,7.52098813]
[1741528198586,0.05492343,133.92,133.89,0.05108813]
[1741528199082,0.05492343,133.92,133.89,7.52098813]
[1741528199286,0.05492343,133.92,133.89,0.05108813]
[1741528200482,0.05492343,133.92,133.9,7.4691]
[1741528201083,0.05492343,133.92,133.89,0.05108813]
[1741528201788,0.05492343,133.92,133.91,7.469]
[1741528201982,0.05492343,133.92,133.89,0.05108813]
[1741528202583,0.05492343,133.92,133.9,7.469]
[1741528202785,0.05492343,133.92,133.89,0.05108813]
[1741528205684,0.05492343,133.92,133.89,2.01958813]
[1741528206082,0.05492343,133.92,133.9,7.4696]
[1741528206882,0.05492343,133.92,133.89,2.01958813]
[1741528207484,7.4664,133.96,133.89,2.01958813]
[1741528207681,75.07935455,134.01,133.9,33.731653]
[1741528207887,75.07935455,134.01,133.93,7.4676]
[1741528208283,33.731653,133.98,133.91,4.0748]
[1741528208584,33.731653,133.98,133.93,0.05187691]
[1741528208790,0.05051571,133.96,133.93,0.05187691]
[1741528210485,7.4673,133.94,133.93,0.05187691]
[1741528211390,7.4669,133.95,133.93,0.05187691]
[1741528211684,0.05051571,133.96,133.93,0.05187691]
[1741528212988,7.51691571,133.96,133.93,0.05187691]
[1741528213488,0.05051571,133.96,133.93,0.05187691]
[1741528214186,0.05051571,133.96,133.93,7.51937691]
[1741528214691,7.51671571,133.96,133.93,7.51937691]
[1741528215191,7.51671571,133.96,133.93,0.05187691]
[1741528215395,0.05051571,133.96,133.93,0.05187691]
[1741528215790,7.4668,133.95,133.93,0.05187691]
[1741528217289,0.05051571,133.96,133.93,0.05187691]
[1741528217592,7.4673,133.94,133.93,0.05187691]
[1741528219491,21.12124595,133.96,133.93,0.05187691]
[1741528219492,7.467,133.95,133.93,0.05187691]
[1741528219797,21.12124595,133.96,133.93,0.05187691]
[1741528220295,0.05051571,133.96,133.93,0.05187691]
[1741528220597,7.4671,133.95,133.93,0.05187691]
[1741528223409,7.4673,133.94,133.93,0.05187691]
[1741528226091,7.4673,133.94,133.93,7.691e-05]
[1741528226300,28.53803024,133.94,133.93,7.691e-05]
[1741528226902,7.4673,133.94,133.93,7.691e-05]
[1741528228397,28.53803024,133.94,133.93,7.691e-05]
[1741528228702,7.4673,133.94,133.93,7.691e-05]
[1741528231500,28.53803024,133.94,133.93,7.691e-05]
[1741528232300,7.4696,133.9,133.89,224.02]
[1741528233499,21.07073024,133.9,133.88,8.25e-05]
[1741528233797,7.4729,133.84,133.83,224.04]
[1741528234196,21.07073024,133.85,133.77,325.04249232]
[1741528234402,21.07073024,133.85,133.78,7.4758]
[1741528234600,56.81073024,133.84,133.77,40.80236208]
[1741528234898,21.07073024,133.78,133.77,30.92106208]
[1741528235103,59.73073024,133.78,133.77,30.92106208]
[1741528235398,7.4768,133.77,133.76,66.78986476]
[1741528235790,0.05415065,133.79,133.76,66.78986476]
[1741528235990,7.4767,133.78,133.76,66.78986476]
[1741528236396,0.05415065,133.79,133.76,66.78986476]
[1741528237204,0.05415065,133.79,133.76,0.05254826]
[1741528237696,10.15526296,133.83,133.76,0.05254826]
[1741528238505,10.15526296,133.83,133.77,44.02]
[1741528238804,0.05277121,133.81,133.77,44.02]
[1741528239404,35.96098012,133.93,133.77,44.02]
[1741528239602,33.80866143,133.89,133.78,4.0403]
[1741528239804,41.27916143,133.89,133.79,7.4755]
[1741528240101,33.80866143,133.89,133.8,224.16]
[1741528240602,0.05345737,133.86,133.83,0.05065725]
[1741528240805,33.80866143,133.92,133.83,106.51065725]
[1741528241104,33.80866143,133.92,133.83,106.46]
[1741528241404,33.80866143,133.86,133.8,224.16]
[1741528242003,0.04787913,133.84,133.82,0.04756596]
[1741528242402,0.04787913,133.84,133.78,48.6003]
[1741528242403,33.80866143,133.83,133.78,2.0169]
[1741528242599,33.80866143,133.8,133.74,224.14]
[1741528242800,78.61654056,133.84,133.74,231.618]
[1741528243000,78.56866143,133.84,133.74,224.14]
[1741528243404,33.80866143,133.79,133.74,224.14]
[1741528243597,0.04707957,133.8,133.78,0.04975179]
[1741528243797,0.04707957,133.8,133.74,224.14]
[1741528244104,0.04707957,133.8,133.78,0.05244983]
[1741528244406,193.0,133.9,133.78,0.05244983]
[1741528244407,33.80866143,133.85,133.78,0.05244983]
[1741528244607,33.80866143,133.88,133.78,1.96144983]
[1741528244806,33.80866143,133.88,133.78,1.909]
[1741528245007,33.80866143,133.88,133.81,7.4742]
[1741528245202,33.80866143,133.88,133.82,224.18]
[1741528245602,0.05236772,133.86,133.84,0.05231929]
[1741528245808,33.80866143,133.85,133.82,224.18]
[1741528246800,33.80866143,133.85,133.7,1.30035124]
[1741528246801,33.80866143,133.79,133.75,224.18]
[1741528247108,33.80866143,133.76,133.71,1.944]
[1741528247299,33.80866143,133.76,133.69,224.18]
[1741528247702,33.80866143,133.73,133.71,0.05639633]
[1741528248006,33.80866143,133.73,133.69,224.18]
[1741528248206,0.05085609,133.73,133.71,0.05385035]
[1741528248417,55.03026931,133.72,133.63,349.34050782]
[1741528248706,55.03026931,133.69,133.63,123.19650782]
[1741528248908,55.03026931,133.66,133.63,123.19650782]
[1741528249112,55.03026931,133.66,133.58,1.9624]
[1741528249311,55.03026931,133.63,133.56,224.2]
[1741528249511,55.03026931,133.6,133.56,224.2]
[1741528249717,55.03026931,133.6,133.54,436.73863765]
[1741528250011,55.03026931,133.57,133.55,302.91723329]
[1741528250612,45.58,133.58,133.55,302.91723329]
[1741528250815,100.61026931,133.58,133.55,302.91723329]
[1741528251004,100.66226359,133.58,133.55,302.97025417]
[1741528251712,0.05199428,133.58,133.55,302.97025417]
[1741528251912,55.03026931,133.64,133.55,302.97025417]
[1741528252106,55.03026931,133.64,133.56,2.0392]
[1741528252307,55.03026931,133.58,133.55,302.91723329]
[1741528253216,55.08165661,133.58,133.55,302.97034204]
[1741528253422,0.0513873,133.58,133.55,302.97034204]
[1741528253811,0.0513873,133.58,133.55,0.05310875]
[1741528255008,45.96,133.63,133.55,0.05310875]